fUST/lending_fUST_20240907
["ID","MTS","AMOUNT","RATE_DAILY","PERIOD"]
[337501340,1725719464541,-1532.06,0.00054794,120]
[337501341,1725719464551,-1532.06,0.00054794,120]
[337501342,1725719464562,-1532.06,0.00054794,120]
[337501343,1725719464572,-1532.06,0.00054794,120]
[337501344,1725719464582,-1532.06,0.00054794,120]
[337501345,1725719464592,-1532.06,0.00054794,120]
[337501346,1725719464608,-1532.06,0.00054794,120]
[337501347,1725719464618,-1532.06,0.00054794,120]
[337501348,1725719464629,-1532.06,0.00054794,120]
[337501349,1725719464639,-1532.06,0.00054794,120]
[337501350,1725719464653,-1532.06,0.00054794,120]
[337501351,1725719464663,-1532.06,0.00054794,120]
[337501352,1725719464673,-1532.06,0.00054794,120]
[337501353,1725719464684,-1532.06,0.00054794,120]
[337501354,1725719464694,-1532.06,0.00054794,120]
[337501355,1725719464704,-1532.06,0.00054794,120]
[337501356,1725719464716,-1532.06,0.00054794,120]
[337501357,1725719464726,-1532.06,0.00054794,120]
[337501358,1725719464736,-1532.06,0.00054794,120]
[337501359,1725719464746,-1532.06,0.00054794,120]
[337501360,1725719464757,-1532.06,0.00054794,120]
[337501361,1725719464767,-1532.06,0.00054794,120]
[337501362,1725719464778,-1532.23410565,0.00054794,120]
[337501363,1725719464789,-200.0,0.00054794,120]
[337501364,1725719464800,-500.0,0.00054794,120]
[337501365,1725719464810,-500.0,0.00054794,78]
[337501366,1725719464821,-170.17,0.000548,30]
[337501367,1725719464831,-749.92,0.000548,30]
[337501368,1725719464843,-1090.10638481,0.00055,120]
[337501369,1725719464855,-500.0,0.00055,120]
[337501370,1725719464865,-500.0,0.00055,120]
[337501371,1725719464876,-1000.0,0.00055,120]
[337501372,1725719464886,-10000.0,0.00055,30]
[337501373,1725719464895,-500.0,0.00055479,81]
[337501374,1725719464905,-208.1608168,0.00055616,60]
[337501375,1725719464915,-208.1608168,0.00055616,60]
[337501376,1725719464927,-208.1608168,0.00055616,60]
[337501377,1725719464938,-208.1608168,0.00055616,60]
[337501378,1725719464948,-418.6805349,0.00055616,60]
[337501379,1725719465057,-208.1608168,0.00055671,60]
[337501380,1725719465068,-208.1608168,0.00055671,60]
[337501381,1725719465078,-467.27801996,0.000557,30]
[337501382,1725719465088,-766.49847992,0.000557,30]
[337501383,1725719465101,-1618.25419429,0.000557,30]
[337501384,1725719465110,-4900.91,0.00056,30]
[337501385,1725719465120,-150.0,0.00056,120]
[337501386,1725719465130,-10000.0,0.00056,30]
[337501387,1725719465140,-200.0,0.00056164,120]
[337501388,1725719465150,-500.0,0.00056164,84]
[337501389,1725719465160,-500.0,0.00056849,87]
[337501390,1725719465170,-276.00671899,0.0005698,120]
[337501391,1725719465180,-150.0,0.00057,120]
[337501392,1725719465189,-10000.0,0.00057,30]
[337501393,1725719465200,-200040.0,0.00057,30]
[337501394,1725719465209,-523.0,0.00057181,120]
[337501395,1725719465219,-150.0,0.00057181,120]
[337501396,1725719465229,-500.0,0.00057319,120]
[337501397,1725719465239,-277.7885918,0.00057342,2]
[337501398,1725719465249,-200.0,0.00057534,120]
[337501399,1725719465258,-500.0,0.00057534,120]
[337501400,1725719465268,-200.0,0.00058,120]
[337501401,1725719465278,-10000.0,0.00058,30]
[337501402,1725719465287,-50000.0,0.0005806,70]
[337501403,1725719465297,-50000.0,0.0005807,80]
[337501404,1725719465306,-50000.0,0.0005808,90]
[337501405,1725719465315,-50000.0,0.0005809,90]
[337501406,1725719465326,-50000.0,0.000581,90]
[337501407,1725719465335,-50000.0,0.0005811,120]
[337501408,1725719465346,-50000.0,0.0005813,120]
[337501409,1725719465356,-50000.0,0.0005814,120]
[337501410,1725719465366,-50000.0,0.0005815,120]
[337501411,1725719465376,-50000.0,0.000582,90]
[337501412,1725719465387,-500000.0,0.0005844,30]
[337501413,1725719465399,-200.0,0.00058904,120]
[337501414,1725719465408,-10000.0,0.00059,30]
[337501415,1725719465418,-200000.0,0.00059,30]
[337501416,1725719465428,-249.62,0.00059029,30]
[337501417,1725719465438,-2000.0,0.0006,120]
[337501418,1725719465447,-500.0,0.0006,120]
[337501419,1725719465457,-1110.85565677,0.0006,120]
[337501420,1725719465466,-1859.43106034,0.0006,120]
[337501421,1725719465476,-689.06224505,0.0006,12]
[337501422,1725719465485,-2007.51386765,0.0006,30]
[337501423,1725719465494,-500.0,0.0006,120]
[337501424,1725719465504,-150.0,0.0006,120]
[337501425,1725719465514,-3000.0,0.0006,120]
[337501426,1725719465524,-10000.0,0.0006,30]
[337501427,1725719465534,-160.0,0.00060171,15]
[337501428,1725719465545,-150.0,0.00060181,120]
[337501429,1725719465555,-500.0,0.00060185,120]
[337501430,1725719465565,-200.0,0.00060273,120]
[337501431,1725719465575,-500.0,0.00060273,120]
[337501432,1725719465585,-1217.24,0.00060273,120]
[337501433,1725719465596,-532.1030281,0.00060356,60]
[337501434,1725719465606,-150.0,0.00061,120]
[337501435,1725719465616,-10000.0,0.00061,30]
[337501436,1725719465626,-1217.24,0.00061369,120]
[337501437,1725719465636,-200.0,0.00061643,120]
[337501438,1725719465650,-5000.0,0.000619,120]
[337501439,1725719465660,-500.0,0.00061989,60]
[337501440,1725719465669,-200.0,0.00062,120]
[337501441,1725719465679,-150.0,0.00062,120]
[337501442,1725719465689,-10000.0,0.00062,30]
[337501443,1725719465699,-500.0,0.00062312,60]
[337501444,1725719465708,-500.0,0.00062394,60]
[337501445,1725719465721,-500000.0,0.0006244,30]
[337501446,1725719465730,-500.0,0.0006245,60]
[337501447,1725719465740,-1217.24,0.00062465,120]
[337501448,1725719465751,-500.0,0.00062853,60]
[337501449,1725719465770,-500.0,0.00062865,60]
[337501450,1725719465781,-500.0,0.0006289,60]
[337501451,1725719465791,-1004.0039,0.00063,120]
[337501452,1725719465802,-150.0,0.00063,120]
[337501453,1725719465813,-200.0,0.00063013,120]
[337501454,1725719465823,-500.0,0.00063013,120]
[337501455,1725719465833,-500.0,0.00063101,60]
[337501456,1725719465846,-500.0,0.00063195,120]
[337501457,1725719465857,-500.0,0.00063334,60]
[337501458,1725719465866,-500.0,0.00063558,60]
[337501459,1725719465876,-1217.24,0.00063561,120]
[337501460,1725719465886,-500.0,0.00063563,60]
[337501461,1725719465896,-828.72595372,0.0006387,60]
[337501462,1725719465906,-200.0,0.00064,120]
[337501463,1725719465917,-7572.51265,0.00064,40]
[337501464,1725719465928,-200.0,0.00064383,120]
[337501465,1725719465938,-362.09506189,0.000644,120]
[337501466,1725719465948,-500.0,0.00064649,60]
[337501467,1725719465958,-1217.24,0.00064657,120]
[337501468,1725719465968,-1023.0,0.00065,120]
[337501469,1725719465979,-1000.0,0.00065,120]
[337501470,1725719465989,-200000.0,0.00065,30]
[337501471,1725719465999,-500.0,0.00065753,120]
[337501472,1725719466009,-500.0,0.00065753,120]
[337501473,1725719466019,-500.0,0.00065753,120]
[337501474,1725719466029,-500.0,0.00065753,120]
[337501475,1725719466038,-500.0,0.00065753,120]
[337501476,1725719466048,-500.0,0.00065753,120]
[337501477,1725719466057,-539.28464248,0.00065753,120]
[337501478,1725719466068,-200.0,0.00065753,120]
[337501479,1725719466078,-500.0,0.00065753,120]
[337501480,1725719466088,-1217.24,0.00065753,120]
[337501481,1725719466099,-500.0,0.00065768,60]
[337501482,1725719466109,-903.94259935,0.00065784,60]
[337501483,1725719466120,-151.0,0.00066,120]
[337501484,1725719466129,-500.0,0.00066269,60]
[337501485,1725719466139,-500.0,0.00066354,120]
[337501486,1725719466149,-500000.0,0.0006644,30]
[337501487,1725719466158,-500.0,0.00066752,60]
[337501488,1725719466168,-1217.24,0.00066849,120]
[337501489,1725719466178,-200.0,0.00067123,120]
[337501490,1725719466187,-500.0,0.00067209,60]
[337501491,1725719466196,-500.0,0.00067505,60]
[337501492,1725719466206,-1217.24,0.00067945,120]
[337501493,1725719466215,-45343.6924801,0.00068,60]
[337501494,1725719466226,-500.0,0.00068026,60]
[337501495,1725719466236,-266.80871915,0.00068493,120]
[337501496,1725719466245,-500.0,0.00068493,120]
[337501497,1725719466255,-750.0,0.00068493,120]
[337501498,1725719466265,-1375.79153658,0.00068537,2]
[337501499,1725719466275,-500.0,0.00068664,120]
[337501500,1725719466283,-500.0,0.00068713,120]
[337501501,1725719466293,-200000.0,0.00069,30]
[337501502,1725719466303,-3000.0,0.00069,120]
[337501503,1725719466313,-3000.0,0.0006901,120]
[337501504,1725719466322,-3000.0,0.0006902,120]
[337501505,1725719466332,-3000.0,0.0006903,120]
[337501506,1725719466342,-5512.670764,0.0006904,120]
[337501507,1725719466353,-1217.24,0.00069041,120]
[337501508,1725719466362,-500.0,0.00069076,120]
[337501509,1725719466371,-153.0,0.00069342,60]
[337501510,1725719466380,-153.0,0.00069342,60]
[337501511,1725719466395,-153.0,0.00069342,60]
[337501512,1725719466405,-153.0,0.00069342,60]
[337501513,1725719466415,-153.0,0.00069753,60]
[337501514,1725719466424,-416.2122698,0.00069753,60]
[337501515,1725719466434,-153.0,0.00069753,60]
[337501516,1725719466443,-153.0,0.00069753,60]
[337501517,1725719466453,-153.0,0.00069753,60]
[337501518,1725719466462,-153.0,0.00069753,60]
[337501519,1725719466472,-162.6035665,0.00069753,60]
[337501520,1725719466482,-3000.0,0.0006985,120]
[337501521,1725719466491,-3000.0,0.0006985,120]
[337501522,1725719466501,-3000.0,0.0006985,120]
[337501523,1725719466510,-3000.0,0.0006985,120]
[337501524,1725719466521,-3000.0,0.0006985,120]
[337501525,1725719466531,-3000.0,0.0006985,120]
[337501526,1725719466541,-3000.0,0.0006985,120]
[337501527,1725719466552,-850.0,0.0006985,120]
[337501528,1725719466562,-465.30527886,0.00069999,120]
[337501529,1725719466571,-500.0,0.00069999,120]
[337501530,1725719466581,-499.98363885,0.00069999,31]
[337501531,1725719466590,-500.0,0.00069999,120]
[337501532,1725719466601,-376.9928649,0.00069999,120]
[337501533,1725719466610,-500.0,0.00069999,120]
[337501534,1725719466620,-500.0,0.00069999,120]
[337501535,1725719466629,-500.0,0.00069999,120]
[337501536,1725719466640,-500.0,0.00069999,120]
[337501537,1725719466653,-500.0,0.00069999,120]
[337501538,1725719466663,-500.0,0.00069999,120]
[337501539,1725719466673,-453.97082047,0.00069999,120]
[337501540,1725719466683,-500.0,0.00069999,120]
[337501541,1725719466693,-500.0,0.00069999,120]
[337501542,1725719466703,-500.0,0.00069999,120]
[337501543,1725719466714,-500.0,0.00069999,120]
[337501544,1725719466725,-500.0,0.00069999,120]
[337501545,1725719466734,-500.0,0.00069999,120]
[337501546,1725719466744,-500.0,0.00069999,120]
[337501547,1725719466754,-500.0,0.00069999,120]
[337501548,1725719466764,-500.0,0.00069999,120]
[337501549,1725719466773,-500.0,0.00069999,120]
[337501550,1725719466782,-500.0,0.00069999,120]
[337501551,1725719466792,-500.0,0.00069999,120]
[337501552,1725719466802,-500.0,0.00069999,120]
[337501553,1725719466811,-2000.0,0.0007,120]
[337501554,1725719466821,-500.0,0.0007,120]
[337501555,1725719466831,-4082.9426238,0.0007,120]
[337501556,1725719466845,-151.0,0.0007,120]
[337501557,1725719466855,-160.9419,0.0007,70]
[337501558,1725719466866,-1217.24,0.00070136,120]
[337501559,1725719466876,-500.0,0.00070208,120]
[337501560,1725719466886,-410.1493314,0.00070356,60]
[337501561,1725719466896,-410.1493314,0.00070356,60]
[337501562,1725719466907,-410.1493314,0.00070356,60]
[337501563,1725719466917,-410.1493314,0.00070356,60]
[337501564,1725719466926,-500000.0,0.0007044,120]
[337501565,1725719466936,-3000.0,0.0007085,120]
[337501566,1725719466946,-410.1493314,0.00071178,60]
[337501567,1725719466956,-410.1493314,0.00071178,60]
[337501568,1725719466966,-500.0,0.00071232,120]
[337501569,1725719466975,-500.0,0.00071232,120]
[337501570,1725719466986,-500.0,0.00071232,120]
[337501571,1725719466995,-500.63432217,0.00071232,120]
[337501572,1725719467006,-500.0,0.00071232,120]
[337501573,1725719467016,-1217.24,0.00071232,120]
[337501574,1725719467026,-163.906033,0.00071256,120]
[337501575,1725719467036,-841.085,0.00071609,120]
[337501576,1725719467045,-500.0,0.00071672,120]
[337501577,1725719467055,-500.0,0.00071706,120]
[337501578,1725719467066,-3000.0,0.0007185,120]
[337501579,1725719467076,-5000.0,0.000719,120]
[337501580,1725719467086,-5000.0,0.000719,120]
[337501581,1725719467096,-208.1608168,0.00071973,60]
[337501582,1725719467106,-200000.0,0.00072,30]
[337501583,1725719467116,-750.0,0.00072098,120]
[337501584,1725719467125,-100000.0,0.0007222,120]
[337501585,1725719467135,-500.0,0.00072319,120]
[337501586,1725719467145,-1217.24,0.00072328,120]
[337501587,1725719467154,-480.0,0.00072387,120]
[337501588,1725719467164,-480.0,0.00072387,120]
[337501589,1725719467173,-500.0,0.00072659,120]
[337501590,1725719467183,-3000.0,0.0007285,120]
[337501591,1725719467192,-500.0,0.00072977,120]
[337501592,1725719467202,-1000.0,0.00073,120]
[337501593,1725719467211,-1846.06596685,0.00073,120]
[337501594,1725719467221,-500.0,0.00073339,120]
[337501595,1725719467231,-1217.24,0.00073424,120]
[337501596,1725719467243,-500.0,0.00073501,120]
[337501597,1725719467253,-500.0,0.00073512,120]
[337501598,1725719467264,-3000.0,0.0007385,120]
[337501599,1725719467274,-170.0,0.0007387,15]
[337501600,1725719467284,-500.0,0.00073957,120]
[337501601,1725719467293,-389.58965701,0.00073972,120]
[337501602,1725719467303,-500.0,0.00074062,120]
[337501603,1725719467313,-1000.0,0.000744,120]
[337501604,1725719467322,-500000.0,0.0007444,30]
[337501605,1725719467332,-1217.24,0.0007452,120]
[337501606,1725719467341,-3000.0,0.0007485,120]
[337501607,1725719467351,-3000.0,0.0007485,120]
[337501608,1725719467361,-3000.0,0.0007485,120]
[337501609,1725719467371,-3000.0,0.0007485,120]
[337501610,1725719467380,-3000.0,0.0007485,120]
[337501611,1725719467390,-3000.0,0.0007485,120]
[337501612,1725719467403,-3000.0,0.0007485,120]
[337501613,1725719467412,-3000.0,0.0007485,120]
[337501614,1725719467421,-3000.0,0.0007485,120]
[337501615,1725719467432,-3000.0,0.0007485,120]
[337501616,1725719467442,-3000.0,0.0007485,120]
[337501617,1725719467451,-3000.0,0.0007485,120]
[337501618,1725719467462,-3000.0,0.0007485,120]
[337501619,1725719467472,-3000.0,0.0007485,120]
[337501620,1725719467481,-3000.0,0.0007485,120]
[337501621,1725719467491,-3000.0,0.0007485,120]
[337501622,1725719467501,-3000.0,0.0007485,120]
[337501623,1725719467511,-500.0,0.00075,120]
[337501624,1725719467523,-1000.0,0.00075,120]
[337501625,1725719467534,-5000.0,0.00075,120]
[337501626,1725719467544,-200000.0,0.00075,30]
[337501627,1725719467555,-6826.72466296,0.00075444,120]
[337501628,1725719467565,-1217.24,0.00075616,120]
[337501629,1725719467575,-750.0,0.00075703,120]
[337501630,1725719467585,-1217.24,0.00076712,120]
[337501631,1725719467595,-1217.24,0.00077808,120]
[337501632,1725719467605,-171.7306,0.00077959,120]
[337501633,1725719467615,-170.17,0.00078,30]
[337501634,1725719467626,-749.92,0.00078,30]
[337501635,1725719467638,-600.0,0.00078,120]
[337501636,1725719467652,-600.0,0.00078,120]
[337501637,1725719467663,-600.0,0.00078,120]
[337501638,1725719467673,-151.0,0.00078,120]
[337501639,1725719467683,-500000.0,0.0007844,120]
[337501640,1725719467692,-1217.24,0.00078904,120]
[337501641,1725719467702,-1000.0,0.00079,120]
[337501642,1725719467712,-750.0,0.00079308,120]
[337501643,1725719467724,-278.76152009,0.00079999,30]
[337501644,1725719467741,-1000.0,0.0008,120]
[337501645,1725719467755,-500.0,0.0008,120]
[337501646,1725719467766,-2000.0,0.0008,120]
[337501647,1725719467776,-500.0,0.0008,120]
[337501648,1725719467786,-666.97933295,0.0008,50]
[337501649,1725719467948,-100136.21779529,0.0008,120]
[337501650,1725719467959,-1734.42284193,0.0008,120]
[337501651,1725719467970,-5000.0,0.0008,120]
[337501652,1725719467980,-852.40745288,0.0008,120]
[337501653,1725719467990,-2040.42,0.0008,120]
[337501654,1725719468000,-247.57936131,0.0008,120]
[337501655,1725719468010,-1217.24,0.0008,120]
[337501656,1725719468019,-999.00000001,0.00081,120]
[337501657,1725719468029,-1217.24,0.00081095,120]
[337501658,1725719468039,-5000.0,0.000819,120]
[337501659,1725719468049,-5000.0,0.00082191,120]
[337501660,1725719468058,-500.0,0.00082191,120]
[337501661,1725719468068,-500.0,0.00082191,120]
[337501662,1725719468078,-534.45215773,0.00082191,120]
[337501663,1725719468088,-1217.24,0.00082191,120]
[337501664,1725719468098,-301937.0,0.0008244,30]
[337501665,1725719468109,-750.0,0.00082913,120]
[337501666,1725719468119,-1217.24,0.00083287,120]
[337501667,1725719468130,-1375.79153658,0.0008356,2]
[337501668,1725719468139,-1217.24,0.00084383,120]
[337501669,1725719468149,-500.0,0.00085,120]
[337501670,1725719468160,-6089.231837,0.00085,90]
[337501671,1725719468171,-1000.0,0.00085,120]
[337501672,1725719468180,-1217.26309384,0.00085479,120]
[337501673,1725719468190,-750.0,0.00086518,120]
[337501674,1725719468200,-749.92,0.000866,60]
[337501675,1725719468209,-3000.0,0.00087,120]
[337501676,1725719468219,-180.0,0.00087568,60]
[337501677,1725719468229,-3000.0,0.000895,120]
[337501678,1725719468238,-30000.0,0.000895,120]
[337501679,1725719468248,-3000.0,0.00089594,120]
[337501680,1725719468257,-1000.0,0.0009,120]
[337501681,1725719468267,-500.0,0.0009,120]
[337501682,1725719468277,-59081.90715,0.0009,120]
[337501683,1725719468287,-323.77653904,0.0009,120]
[337501684,1725719468296,-281.0,0.0009,120]
[337501685,1725719468306,-279.0,0.0009,120]
[337501686,1725719468315,-750.0,0.00090123,120]
[337501687,1725719468325,-841.085,0.00090805,120]
[337501688,1725719468334,-163.906033,0.00090865,120]
[337501689,1725719468344,-160.0,0.00091248,3]
[337501690,1725719468355,-160.87521437,0.00091248,5]
[337501691,1725719468365,-5000.0,0.000919,120]
[337501692,1725719468375,-3000.0,0.00092188,120]
[337501693,1725719468385,-750.0,0.00093727,120]
[337501694,1725719468395,-1819.55734696,0.0009443,30]
[337501695,1725719468405,-89315.56489644,0.000945,120]
[337501696,1725719468414,-3000.0,0.00094781,120]
[337501697,1725719468423,-6103.10322859,0.0009488,60]
[337501698,1725719468433,-24540.09577554,0.000949,120]
[337501699,1725719468442,-4025.8300277,0.00095,120]
[337501700,1725719468451,-1000.0,0.00095,120]
[337501701,1725719468462,-1998.26372468,0.00095,120]
[337501702,1725719468472,-720.99713199,0.0009697,105]
[337501703,1725719468481,-750.0,0.00097332,120]
[337501704,1725719468491,-3000.0,0.00097375,120]
[337501705,1725719468501,-1000.0,0.00097399,120]
[337501706,1725719468511,-7015.23368184,0.000975,30]
[337501707,1725719468520,-1375.79153658,0.00098583,2]
[337501708,1725719468530,-32563.0,0.00099,120]
[337501709,1725719468539,-167.65,0.00099,120]
[337501710,1725719468549,-9100.0,0.00099,120]
[337501711,1725719468558,-150.0,0.0009921,120]
[337501712,1725719468568,-3000.0,0.000995,120]
[337501713,1725719468578,-100000.0,0.000999,120]
[337501714,1725719468588,-3000.0,0.00099969,120]
[337501715,1725719468598,-1000.0,0.00099999,120]
[337501716,1725719468608,-5000.0,0.001,91]
[337501717,1725719468617,-15000.0,0.001,120]
[337501718,1725719468627,-2000.0,0.001,120]
[337501719,1725719468637,-513.36264613,0.001,120]
[337501720,1725719468650,-5000.0,0.001,120]
[337501721,1725719468660,-1126.48728144,0.001,120]
[337501722,1725719468669,-29858.0793016,0.001,120]
[337501723,1725719468679,-41027.23078467,0.001,120]
[337501724,1725719468690,-1404.26316885,0.001,120]
[337501725,1725719468700,-500.0,0.001,120]
[337501726,1725719468709,-200.48981365,0.001,120]
[337501727,1725719468722,-5000.0,0.001,120]
[337501728,1725719468731,-1001.0,0.001,120]
[337501729,1725719468741,-500.0,0.001,120]
[337501730,1725719468751,-5000.0,0.001,120]
[337501731,1725719468760,-1024.97451122,0.001,120]
[337501732,1725719468770,-2498.24475398,0.001,120]
[337501733,1725719468780,-55433.839,0.001,120]
[337501734,1725719468789,-151.0,0.001,120]
[337501735,1725719468798,-151.0,0.001,120]
[337501736,1725719468809,-750.0,0.00100937,120]
[337501737,1725719468818,-190.0,0.00101267,60]
[337501738,1725719468828,-3000.0,0.00102563,120]
[337501739,1725719468839,-440.0,0.00103717,120]
[337501740,1725719468850,-440.0,0.00103717,120]
[337501741,1725719468859,-750.0,0.00104542,120]
[337501742,1725719468869,-3000.0,0.00105156,120]
[337501743,1725719468878,-3000.0,0.0010775,120]
[337501744,1725719468888,-750.0,0.00108147,120]
[337501745,1725719468897,-2931.51263303,0.00109241,28]
[337501746,1725719468907,-3000.0,0.001095,120]
[337501747,1725719468916,-5000.0,0.00109589,120]
[337501748,1725719468926,-8380.23271156,0.001099,120]
[337501749,1725719469105,-153.0,0.00041781,2]
[337501750,1725719469115,-587.699138,0.001099,120]
[337501753,1725720213432,-464.24176494,0.00022,2]
[337501754,1725720213466,-302.0,0.0003,120]
[337501755,1725720213491,-189.4400936,0.00030137,3]
[337501756,1725720213515,-3000.0,0.00030161,2]
[337501757,1725720213542,-250.0,0.00030283,2]
[337501758,1725720213568,-673.44115631,0.00030305,2]
[337501759,1725720213595,-250.0,0.00030366,2]
[337501760,1725720213620,-250.0,0.0003045,2]
[337501761,1725720213648,-250.0,0.00030533,2]
[337501762,1725720213674,-250.0,0.00030616,2]
[337501763,1725720213700,-250.0,0.00030699,2]
[337501764,1725720213726,-250.0,0.00030782,2]
[337501765,1725720213752,-250.0,0.00030865,2]
[337501766,1725720213776,-245.0,0.00030916,2]
[337501767,1725720213802,-250.0,0.00030948,2]
[337501768,1725720213827,-250.0,0.00031031,2]
[337501769,1725720213851,-250.0,0.00031114,2]
[337501770,1725720213879,-250.0,0.00031197,2]
[337501771,1725720213905,-250.0,0.0003128,2]
[337501772,1725720214164,-768.9039,0.00031739,30]
[337501773,1725720214189,-475.42205782,0.00031821,2]
[337501774,1725720214213,-171.7306,0.00033349,2]
[337501775,1725720214238,-400.0,0.00033595,2]
[337501776,1725720214264,-24900.0,0.00033596,2]
[337501777,1725720214288,-250.0,0.00033631,2]
[337501778,1725720214312,-757.985454,0.00033814,2]
[337501779,1725720214335,-2735.11144094,0.00033814,2]
[337501780,1725720214359,-251.0,0.00033861,2]
[337501781,1725720214382,-895.4946611,0.00033887,2]
[337501782,1725720214406,-192.52266932,0.0003464,2]
[337501783,1725720214429,-1203.0963072,0.00035161,2]
[337501784,1725720214453,-2115.28931114,0.00035202,26]
[337501785,1725720214478,-168.217,0.00035216,41]
[337501786,1725720214502,-389.45141259,0.00035554,26]
[337501787,1725720214526,-500.0,0.00036899,15]
[337501788,1725720214549,-500.0,0.00036899,15]
[337501789,1725720214574,-500.0,0.00036899,7]
[337501790,1725720214598,-500.0,0.00036899,15]
[337501791,1725720214622,-500.0,0.00036899,15]
[337501792,1725720214649,-356.19546555,0.00036899,7]
[337501793,1725720214673,-195.0,0.00036899,15]
[337501794,1725720214703,-544.52889626,0.00036899,15]
[337501795,1725720214729,-500.0,0.00036899,7]
[337501796,1725720214754,-500.0,0.00036899,15]
[337501797,1725720214779,-500.0,0.00036899,15]
[337501798,1725720214805,-500.0,0.00036899,7]
[337501799,1725720214830,-500.0,0.00036899,15]
[337501800,1725720214854,-500.0,0.00036899,15]
[337501801,1725720214882,-500.0,0.00036899,7]
[337501802,1725720214906,-500.0,0.00036899,15]
[337501803,1725720214932,-500.0,0.00036899,7]
[337501804,1725720214959,-500.0,0.00036899,15]
[337501805,1725720214985,-500.0,0.00036899,7]
[337501806,1725720215008,-500.0,0.00036899,15]
[337501807,1725720215034,-500.0,0.00036899,7]
[337501808,1725720215059,-500.0,0.00036899,7]
[337501809,1725720215083,-500.0,0.00036899,15]
[337501810,1725720215107,-179.29461254,0.00036899,15]
[337501811,1725720215134,-500.0,0.00036899,15]
[337501812,1725720215162,-500.0,0.00036899,15]
[337501813,1725720215186,-500.0,0.00036899,15]
[337501814,1725720215212,-500.0,0.00036899,15]
[337501815,1725720215237,-500.0,0.00036899,15]
[337501816,1725720215262,-209.52951436,0.00036899,15]
[337501817,1725720215286,-500.0,0.00036899,15]
[337501818,1725720215310,-2090.6483748,0.000369,2]
[337501819,1725720215334,-1099.35625452,0.000369,2]
[337501820,1725720215359,-560.0,0.00036955,2]
[337501821,1725720215383,-676.32434295,0.00037,2]
[337501822,1725720215408,-12071.1710797,0.00037594,2]
[337501823,1725720215433,-119615.329147,0.00037594,4]
[337501824,1725720215459,-140390.00381,0.00037594,4]
[337501825,1725720215483,-88888.0,0.00037604,60]
[337501826,1725720215508,-76326.27067336,0.00037674,4]
[337501827,1725720243405,-250.0,0.00031363,2]
[337501828,1725720243433,-250.0,0.00031446,2]
[337501829,1725720243459,-250.0,0.00031529,2]
[337501830,1725720243486,-250.0,0.00031613,2]
[337501831,1725720243514,-250.0,0.00031696,2]
[337501832,1725720243539,-250.0,0.00031779,2]
[337501833,1725720243565,-250.0,0.00031862,2]
[337501834,1725720243589,-166.66666666,0.00037575,2]
[337501835,1725720243615,-305.0,0.00037664,2]
[337501836,1725720243641,-300.0,0.00037664,2]
[337501837,1725720243778,-1508.47,0.00037665,3]
[337501838,1725720243805,-1257.06,0.00037665,3]
[337501839,1725720243832,-103096.72304764,0.00037674,4]
[337501840,1725720243858,-210585.005715,0.00037674,4]
[337501841,1725720243887,-155.94983774,0.00037681,15]